bitfinex/quotes_ETHUSD_20250328
["timestamp","ask_amount","ask_price","bid_price","bid_amount"]
[1743123262910,0.426093,2008.1,2007.8,4.98054]
[1743123263073,3.7907,2008.2,2007.8,4.98054]
[1743123263273,0.426093,2008.1,2007.8,4.9804]
[1743123263470,3.0,2008.3,2008.0,4.98007]
[1743123263683,0.42576473,2008.2,2008.0,10.7371]
[1743123263875,8.5085,2008.4,2008.0,5.75703]
[1743123264189,0.42576473,2008.3,2008.0,4.97993]
[1743123265466,0.42576473,2008.3,2008.0,19.47993]
[1743123265863,0.42576473,2008.3,2008.0,4.97993]
[1743123271197,0.42576473,2008.3,2008.0,9.95983]
[1743123271498,0.42576473,2008.3,2008.0,4.9799]
[1743123272393,0.42576473,2008.3,2008.0,9.95979]
[1743123272604,0.42576473,2008.3,2008.1,4.97979]
[1743123272766,0.42576473,2008.3,2008.2,4.97958]
[1743123272968,0.42576473,2008.3,2008.2,19.47958]
[1743123273598,0.42576473,2008.3,2008.2,4.97958]
[1743123273801,7.682,2008.6,2008.3,4.97925]
[1743123275183,3.0,2008.6,2008.3,10.79108]
[1743123276112,4.682,2008.7,2008.4,4.97908]
[1743123277420,3.0,2008.6,2008.3,5.81183]
[1743123277590,3.0,2008.6,2008.3,10.79106]
[1743123277785,3.0,2008.6,2008.3,10.79104]
[1743123277995,0.98880168,2008.8,2008.4,4.97884]
[1743123278196,3.0,2008.7,2008.5,4.97871]
[1743123278383,10.42555,2009.1,2008.6,4.97859]
[1743123278586,10.42555,2009.1,2008.6,5.73459]
[1743123278787,5.74355,2009.1,2008.6,5.73459]
[1743123278993,0.7662,2009.1,2008.7,4.97822]
[1743123279213,4.682,2009.1,2008.8,9.95584]
[1743123279392,4.682,2009.1,2008.8,4.97789]
[1743123279597,7.682,2009.1,2008.8,4.97789]
[1743123280316,4.682,2009.1,2008.8,4.97789]
[1743123280813,7.682,2009.1,2008.7,4.97833]
[1743123281616,7.682,2009.1,2008.7,9.95656]
[1743123281822,7.682,2009.1,2008.7,24.45656]
[1743123282124,4.97802,2008.9,2008.5,4.97881]
[1743123283115,4.97802,2008.9,2008.5,9.95744]
[1743123283716,9.23672971,2009.0,2008.6,4.97853]
[1743123283899,9.23672971,2009.0,2008.6,9.95696]
[1743123284100,9.23672971,2009.0,2008.6,4.97843]
[1743123286291,0.42784339,2008.9,2008.6,4.97843]
[1743123289932,0.42784339,2008.9,2008.5,24.45749]
[1743123290437,0.42784339,2008.9,2008.6,4.97857]
[1743123292028,0.42784339,2008.9,2008.6,9.95703]
[1743123292238,0.42784339,2008.9,2008.6,4.97846]
[1743123294129,5.40574339,2008.9,2008.5,4.9787]
[1743123295535,5.40574339,2008.9,2008.5,4.97865]
[1743123295847,5.79223,2008.3,2008.2,0.02609036]
[1743123296003,10.49623,2008.3,2008.2,0.02609036]
[1743123296407,10.92407339,2008.3,2008.2,0.02609036]
[1743123297521,13.92407339,2008.3,2008.2,0.02609036]
[1743123298151,14.47407339,2008.3,2008.2,0.02609036]
[1743123298512,29.15559439,2008.3,2008.2,0.02609036]
[1743123298838,22.99395939,2008.3,2008.2,0.02609036]
[1743123299753,23.36692289,2008.3,2008.2,0.02609036]
[1743123300343,4.98166,2007.4,2007.2,0.8051]
[1743123300640,0.4233569,2007.3,2007.0,10.72749]
[1743123301008,0.4233569,2007.3,2007.1,14.5]
[1743123302232,1.2406569,2007.3,2006.8,0.7631]
[1743123302433,1.2406569,2007.3,2007.0,4.98243]
[1743123303140,1.2406569,2007.3,2006.9,24.46527]
[1743123303335,1.2406569,2007.3,2006.9,26.988107]
[1743123303840,1.2406569,2007.3,2007.0,4.98238]
[1743123304042,0.4233569,2007.3,2007.0,4.98238]
[1743123305340,0.4233569,2007.3,2007.1,14.5]
[1743123306047,0.4233569,2007.3,2007.1,19.48229]
[1743123306349,0.4233569,2007.3,2007.1,16.47768542]
[1743123306565,0.4233569,2007.3,2007.1,17.23228542]
[1743123306771,0.4233569,2007.3,2007.1,14.5]
[1743123308318,0.4233569,2007.3,2007.1,19.48226]
[1743123311269,0.4233569,2007.3,2007.2,4.98206]
[1743123311439,0.4233569,2007.3,2007.1,19.4822]
[1743123311761,0.41948806,2007.2,2007.1,19.4822]
[1743123311964,8.80553,2007.5,2007.1,19.4822]
[1743123312165,0.41948806,2007.4,2007.1,19.4822]
[1743123313529,0.41948806,2007.4,2007.1,14.5]
[1743123313768,5.40111806,2007.4,2007.1,14.5]
[1743123313927,8.40111806,2007.4,2007.1,14.5]
[1743123314557,8.40111806,2007.4,2007.0,9.9649]
[1743123314846,3.41948806,2007.4,2007.1,4.98228]
[1743123316650,3.41948806,2007.4,2007.0,19.48251]
[1743123316958,4.98185,2007.3,2006.9,8.260107]
[1743123317155,5.78981,2007.2,2006.7,5.78555]
[1743123317349,9.24522971,2007.2,2006.7,5.78555]
[1743123317550,0.41948806,2007.1,2006.8,4.98302]
[1743123317924,0.41948806,2007.1,2006.9,4.98266]
[1743123318652,0.41948806,2007.1,2006.8,4.98296]
[1743123318860,0.41948806,2007.1,2006.8,9.96587]
[1743123319062,0.41948806,2007.1,2006.8,4.98291]
[1743123319724,0.41948806,2007.1,2006.8,9.96587]
[1743123319925,0.41948806,2007.1,2006.9,5.03251665]
[1743123320261,0.41948806,2007.1,2007.0,5.75866]
[1743123320630,3.0,2007.4,2007.1,4.98217]
[1743123320848,3.0,2007.4,2007.1,9.96428]
[1743123321356,5.73453,2007.8,2007.4,4.98147]
[1743123321577,3.0,2007.6,2007.3,5.78101]
[1743123321864,3.0,2007.6,2007.3,4.98181]
[1743123322362,7.98111,2007.6,2007.2,4.98206]
[1743123322536,7.98111,2007.6,2007.2,4.98201]
[1743123322732,4.98133,2007.5,2007.2,4.98201]
[1743123322950,7.98111,2007.6,2007.2,4.98201]
[1743123323156,7.98111,2007.6,2007.3,4.98179]
[1743123323763,3.0,2007.6,2007.3,4.98179]
[1743123324262,3.0,2007.6,2007.3,9.96341]
[1743123324832,3.0,2007.6,2007.3,9.96332]
[1743123325031,3.0,2007.6,2007.3,4.98162]
[1743123326451,3.0,2007.6,2007.3,9.96329]
[1743123326964,3.0,2007.6,2007.3,4.98162]
[1743123327165,3.0,2007.6,2007.3,9.96331]
[1743123327331,3.0,2007.6,2007.3,4.98162]
[1743123330663,3.0,2007.6,2007.4,4.98155]
[1743123330863,3.0,2007.6,2007.5,4.98132]
[1743123331183,0.7539,2007.8,2007.6,4.98098]
[1743123331335,0.7915,2008.0,2007.7,4.98082]
[1743123331538,0.8107,2008.4,2008.0,4.97994]
[1743123331736,0.8107,2008.4,2008.1,4.97978]
[1743123331737,5.4967,2008.4,2008.1,4.97978]
[1743123331978,3.0,2008.3,2008.1,4.97978]
[1743123332184,5.4967,2008.4,2008.1,4.97978]
[1743123332347,3.0,2008.3,2008.0,4.97994]
[1743123332753,3.0,2008.3,2007.8,4.98041]
[1743123332754,3.0,2008.3,2007.9,4.98028]
[1743123332997,7.97951,2008.3,2007.9,4.98028]
[1743123333279,0.8063,2008.1,2007.8,4.98055]
[1743123333441,0.8063,2008.1,2007.8,9.96097]
[1743123334293,0.8063,2008.1,2007.9,4.98028]
[1743123334450,3.45541971,2008.2,2007.9,4.98028]
[1743123336252,8.43510971,2008.2,2007.8,4.98042]
[1743123337293,8.43510971,2008.2,2007.8,9.96081]
[1743123339054,8.43510971,2008.2,2007.9,4.98032]
[1743123340705,8.43510971,2008.2,2007.8,4.98039]
[1743123341009,4.98026,2008.0,2007.6,4.98092]
[1743123341167,4.98026,2008.0,2007.6,9.96181]
[1743123341667,4.98026,2008.0,2007.6,4.98089]
[1743123341889,3.0,2007.9,2007.6,4.98089]
[1743123342797,4.98098,2007.7,2007.2,4.98206]
[1743123342971,0.75,2007.6,2007.3,4.98179]
[1743123343665,0.75,2007.6,2007.1,20.29804]
[1743123343666,4.98134,2007.5,2007.1,20.29804]
[1743123343893,4.98134,2007.5,2007.1,24.46434]
[1743123344068,4.98134,2007.5,2007.1,19.4821]
[1743123346472,0.41970718,2007.4,2007.1,24.46421]
[1743123346668,0.41970718,2007.4,2007.1,19.4821]
[1743123347067,0.41970718,2007.4,2007.1,24.46423]
[1743123347284,0.41970718,2007.4,2007.1,19.4821]
[1743123348002,0.41970718,2007.4,2007.1,14.5]
[1743123348196,0.8019,2007.3,2007.1,14.5]
[1743123348609,0.41970718,2007.2,2007.1,14.5]
[1743123348971,0.41970718,2007.2,2006.9,9.9656]
[1743123349172,0.41970718,2007.2,2006.9,4.9828]
[1743123349710,0.41970718,2007.2,2006.9,9.9655]
[1743123350004,0.41970718,2007.2,2006.9,4.9827]
[1743123350202,0.41970718,2007.2,2006.9,9.9654]
[1743123350511,0.41970718,2007.2,2007.0,4.9825]
[1743123351604,0.41970718,2007.2,2007.1,4.98231]
[1743123354499,13.49292,2007.5,2007.1,4.98231]
[1743123354701,0.41970718,2007.2,2007.1,4.98231]
[1743123355212,13.49292,2007.5,2007.1,4.98231]
[1743123355402,0.41970718,2007.4,2007.1,19.48231]
[1743123356306,5.40127718,2007.4,2007.1,14.5]
[1743123356897,5.40127718,2007.4,2006.9,4.9828]
[1743123357103,5.78211,2007.3,2006.9,4.9828]
[1743123357813,0.41970718,2007.2,2006.9,4.9828]
[1743123358587,5.40177718,2007.2,2006.8,19.48294]
[1743123358783,7.98231,2007.1,2006.7,5.75635]
[1743123358988,1.19544685,2007.0,2006.7,4.98325]
[1743123359414,1.19544685,2007.0,2006.7,19.48325]
[1743123359616,1.19544685,2007.0,2006.8,4.98304]
[1743123360415,1.19544685,2007.0,2006.8,9.96595]
[1743123361097,0.41824685,2007.0,2006.9,4.9828]
[1743123361510,3.7505,2007.2,2006.9,4.9828]
[1743123361891,0.41824685,2007.1,2006.9,4.9828]
[1743123362320,0.41824685,2007.1,2006.8,4.98291]
[1743123362915,0.41824685,2007.1,2006.8,4.98305]
[1743123363417,5.40064685,2007.1,2006.7,19.48314]
[1743123363607,5.40064685,2007.1,2006.7,14.5]
[1743123363811,0.7521,2006.9,2006.7,4.98321]
[1743123364012,0.41715139,2006.8,2006.7,4.98321]
[1743123364212,0.7521,2006.9,2006.7,19.48321]
[1743123364627,0.41715139,2006.8,2006.7,19.48321]
[1743123364927,0.7521,2006.9,2006.7,19.48321]
[1743123365142,0.41715139,2006.8,2006.7,19.48321]
[1743123365442,0.7521,2006.9,2006.7,19.48321]
[1743123365618,0.41715139,2006.8,2006.7,19.48321]
[1743123366140,3.0,2007.0,2006.7,19.4832]
[1743123366301,0.41715139,2006.8,2006.7,19.4832]
[1743123366506,5.3504019,2007.3,2007.0,4.98242]
[1743123366507,0.8051,2007.3,2007.0,4.98242]
[1743123366739,5.4901,2007.3,2007.1,4.98226]
[1743123367233,5.4901,2007.3,2007.1,14.5]
[1743123368611,5.4901,2007.3,2007.0,4.98242]
[1743123369728,3.0,2007.4,2007.1,4.98221]
[1743123370444,7.98159,2007.4,2007.1,4.98221]
[1743123370605,7.98163,2007.4,2007.0,4.98247]
[1743123371005,4.98185,2007.3,2006.9,24.46527]
[1743123371208,7.9816,2007.4,2007.0,4.98253]
[1743123371637,3.0,2007.4,2007.1,4.98211]
[1743123372740,7.685,2007.4,2007.2,4.98186]
[1743123373320,7.685,2007.6,2007.2,9.96375]
[1743123373524,7.685,2007.6,2007.3,4.98161]
[1743123374324,3.8034,2007.7,2007.3,4.98161]
[1743123374839,8.78435,2007.7,2007.3,4.98161]
[1743123375049,4.98122,2007.6,2007.2,4.98201]
[1743123375245,8.78435,2007.7,2007.2,4.98194]
[1743123375749,4.98108,2007.6,2007.2,4.98194]
[1743123376533,0.41729748,2007.5,2007.2,4.98194]
[1743123377142,0.41729748,2007.5,2007.2,9.96381]
[1743123377343,0.41729748,2007.5,2007.2,9.96382]
[1743123377545,3.41729748,2007.5,2007.2,4.98187]
[1743123379558,0.41729748,2007.5,2007.1,5.7846]
[1743123379715,8.39865748,2007.5,2007.1,5.7846]
[1743123379914,5.76567,2007.4,2006.9,9.24947971]
[1743123380118,5.76562,2007.4,2007.0,4.98254]
[1743123380669,0.41729748,2007.3,2007.0,4.98254]
[1743123383953,5.39913748,2007.3,2006.9,20.29406]
[1743123385254,5.39913748,2007.3,2006.9,19.48256]
[1743123385456,6.37920583,2007.3,2006.9,24.46516]
[1743123385949,5.39913748,2007.3,2006.9,24.46516]
[1743123386323,3.41729748,2007.3,2007.0,4.98252]
[1743123387754,8.39910748,2007.3,2007.0,4.98252]
[1743123389055,8.39910748,2007.3,2007.0,19.48252]
[1743123390257,3.41729748,2007.3,2007.0,19.48252]
[1743123390458,3.41729748,2007.3,2007.0,24.46498]
[1743123390663,3.41729748,2007.3,2007.0,19.48246]
[1743123391165,3.41729748,2007.3,2007.0,19.48245]
[1743123391366,3.41729748,2007.3,2007.0,24.46491]
[1743123391728,3.41729748,2007.3,2007.0,19.48245]
[1743123392355,3.41729748,2007.3,2007.1,4.98226]
[1743123392356,0.41729748,2007.3,2007.1,4.98226]
[1743123392555,0.41729748,2007.3,2007.2,4.98206]
[1743123392763,0.41729748,2007.3,2007.2,5.81346]
[1743123392924,7.684,2007.7,2007.3,4.98166]
[1743123393124,4.684,2007.7,2007.4,4.98141]
[1743123393360,3.0,2007.6,2007.5,4.98131]
[1743123395170,3.0,2007.6,2007.4,19.48141]
[1743123395363,7.684,2007.7,2007.4,19.48141]
[1743123395536,3.0,2007.6,2007.4,19.48141]
[1743123396353,3.0,2007.6,2007.4,4.98141]
[1743123399139,3.0,2007.6,2007.3,4.98171]
[1743123399340,0.8004,2007.5,2007.3,4.98171]
[1743123400367,0.8004,2007.5,2007.3,4.98164]
[1743123400879,5.78181,2007.5,2007.1,4.98224]
[1743123401276,5.78181,2007.5,2007.1,9.96438]
[1743123401435,0.8004,2007.5,2007.2,4.98205]
[1743123403581,5.78174,2007.5,2007.1,4.98214]
[1743123403910,4.98169,2007.4,2007.0,19.48254]
[1743123404078,8.43710971,2007.4,2007.0,19.48241]
[1743123404407,3.45541971,2007.4,2007.1,4.9823]
[1743123405380,0.7618,2007.3,2007.1,4.9823]
[1743123405993,0.7618,2007.3,2007.0,4.98241]
[1743123406203,0.7618,2007.3,2007.0,9.96485]
[1743123406472,0.41908662,2007.2,2007.0,9.96485]
[1743123407061,0.41908662,2007.2,2007.1,4.98231]
[1743123407807,0.7951,2007.5,2007.2,4.98191]
[1743123407965,0.41850243,2007.4,2007.2,4.98191]
[1743123408575,0.41850243,2007.4,2007.2,9.96384]
[1743123408782,0.41850243,2007.4,2007.2,4.98191]
[1743123416637,0.41850243,2007.4,2007.1,9.96449]
[1743123416811,0.41850243,2007.4,2007.1,4.98219]
[1743123417014,0.41850243,2007.4,2007.1,9.96432]
[1743123417741,0.41850243,2007.4,2007.1,24.46428]
[1743123418233,0.41850243,2007.4,2007.1,19.48213]
[1743123418438,0.41850243,2007.4,2007.1,24.4643]
[1743123420144,0.41850243,2007.4,2007.2,4.98205]
[1743123420439,0.41850243,2007.4,2007.3,4.98181]
[1743123420682,1.75698274,2008.1,2007.8,4.98051]
[1743123420935,5.4467,2008.1,2007.8,4.98053]
[1743123421309,3.41791826,2008.0,2007.8,9.9609]
[1743123421844,3.41791826,2008.0,2007.9,4.98032]
[1743123422854,0.41791826,2008.0,2007.9,4.98032]
[1743123423139,0.41791826,2008.0,2007.9,6.00500403]
[1743123423507,3.7866,2008.3,2008.0,4.97996]
[1743123423815,0.41791826,2008.2,2008.0,4.97996]
[1743123424029,0.41791826,2008.2,2007.9,6.00498403]
[1743123424417,5.39757826,2008.2,2007.8,4.98046]
[1743123425225,0.41791826,2008.2,2007.8,9.96082]
[1743123426951,0.41791826,2008.2,2008.0,4.98005]
[1743123427456,0.41791826,2008.2,2007.9,4.98021]
[1743123427819,0.41791826,2008.2,2007.9,4.9802]
[1743123429330,0.41791826,2008.2,2007.9,9.96032]
[1743123429532,0.41791826,2008.2,2007.9,4.98012]
[1743123429732,0.41791826,2008.2,2008.0,4.98007]
[1743123433019,0.41791826,2008.2,2008.1,4.97983]
[1743123435477,0.41791826,2008.2,2008.0,5.759]
[1743123437288,0.41791826,2008.2,2008.1,4.97983]
[1743123438643,3.0,2008.4,2008.2,4.97944]
[1743123438850,3.0,2008.4,2008.3,4.97933]
[1743123439379,4.682,2008.7,2008.5,4.97882]
[1743123439681,3.7995,2008.8,2008.5,4.97882]
[1743123440091,3.7995,2008.8,2008.4,4.97905]
[1743123440382,8.77769,2008.8,2008.4,4.97905]
[1743123440593,8.77769,2008.8,2008.4,9.95792]
[1743123440884,3.7995,2008.8,2008.5,4.97872]
[1743123442287,3.7995,2008.8,2008.4,4.97902]
[1743123442785,8.77761,2008.8,2008.4,4.97902]
[1743123443657,3.7995,2008.8,2008.5,4.97882]
[1743123445770,3.7995,2008.8,2008.5,9.9575]
[1743123445981,3.7995,2008.8,2008.6,4.97856]
[1743123447082,3.0,2008.8,2008.6,4.97856]
[1743123449703,0.8124,2008.9,2008.7,4.97832]
[1743123449901,3.0,2009.0,2008.8,4.97799]
[1743123450369,0.8195,2009.2,2008.9,4.97781]
[1743123450573,5.5005,2009.2,2008.9,4.97781]
[1743123450801,6.52045741,2009.2,2008.9,4.97781]
[1743123451013,9.04085643,2009.4,2009.0,4.97749]
[1743123451506,5.07401779,2009.3,2009.0,4.9774]
[1743123458823,10.05096779,2009.3,2008.9,4.97784]
[1743123459197,10.05096779,2009.3,2008.7,5.76092]
[1743123459198,0.7818,2009.1,2008.7,5.76092]
[1743123459391,5.75926,2009.1,2008.7,5.76092]
[1743123459630,0.39331086,2009.0,2008.8,2.1256644]
[1743123459828,0.39331086,2009.0,2008.7,5.76075]
[1743123460429,0.39331086,2009.0,2008.7,10.73891]
[1743123461132,4.97794,2008.9,2008.6,0.995724]
[1743123461338,4.97794,2008.9,2008.5,25.22983]
[1743123461633,0.39331086,2008.8,2008.6,4.97859]
[1743123462206,8.43311971,2009.0,2008.6,4.97859]
[1743123462406,0.7941,2008.8,2008.6,4.97859]
[1743123462701,0.7941,2008.8,2008.5,4.97879]
[1743123462929,0.39331086,2008.7,2008.5,4.97879]
[1743123463231,0.39331086,2008.7,2008.5,7.03192603]
[1743123464203,0.39331086,2008.7,2008.4,9.95803]
[1743123464615,0.39331086,2008.7,2008.5,4.97878]
[1743123467241,0.39331086,2008.7,2008.4,4.97893]
[1743123467535,0.39331086,2008.7,2008.3,20.25191]
[1743123467536,0.8046,2008.5,2008.3,14.5]
[1743123467706,0.39386052,2008.4,2008.2,4.97951]
[1743123469716,5.37303052,2008.4,2008.0,19.48003]
[1743123470226,0.39386052,2008.4,2008.1,4.97983]
[1743123470839,3.39386052,2008.4,2008.1,4.97983]
[1743123471246,3.39386052,2008.4,2008.1,4.9797]
[1743123473051,3.39386052,2008.4,2008.1,9.95935]
[1743123473251,3.39386052,2008.4,2008.1,4.97965]
[1743123473939,3.39386052,2008.4,2008.2,14.5]
[1743123477250,3.39386052,2008.4,2008.1,9.95936]
[1743123477546,8.37296052,2008.4,2008.0,4.98004]
[1743123477720,8.37296052,2008.4,2007.7,3.830487]
[1743123477721,4.97994,2008.1,2007.7,4.98081]
[1743123477915,4.97994,2008.1,2007.7,9.96146]
[1743123477916,0.39217505,2008.0,2007.7,9.96146]
[1743123478148,0.39217505,2008.0,2007.7,24.46146]
[1743123478749,0.39217505,2008.0,2007.7,19.48062]
[1743123478937,0.39217505,2008.0,2007.7,21.85263397]
[1743123479138,5.74809,2008.0,2007.7,16.87201397]
[1743123479445,0.39070921,2007.9,2007.7,14.5]
[1743123479638,5.37119921,2007.9,2007.5,4.98126]
[1743123480028,5.37119921,2007.9,2007.5,19.48126]
[1743123480230,5.37119921,2007.9,2007.5,24.46238]
[1743123480641,3.39070921,2007.9,2007.6,4.98105]
[1743123481140,13.35156921,2007.9,2007.5,19.48112]
[1743123481338,8.37110921,2007.9,2007.5,24.46232]
[1743123481563,8.37110921,2007.9,2007.5,26.985442]
[1743123482065,8.37110921,2007.9,2007.6,4.98106]
[1743123482553,0.39070921,2007.9,2007.6,4.98106]
[1743123483137,5.37103921,2007.9,2007.5,7.504242]
[1743123483350,8.37103921,2007.9,2007.5,5.03092756]
[1743123483849,5.74373,2007.7,2007.3,4.98162]
[1743123484051,4.98141,2007.5,2007.1,5.81339]
[1743123484255,0.38806953,2007.4,2007.1,4.98229]
[1743123484488,0.8242,2007.4,2007.1,4.98229]
[1743123484646,0.38806953,2007.3,2007.1,4.98229]
[1743123485140,0.38806953,2007.3,2007.1,4.98209]
[1743123486582,0.38806953,2007.3,2007.2,4.98206]
[1743123487647,0.38806953,2007.3,2007.2,6.81319119]
[1743123487853,12.66182,2007.7,2007.3,4.98176]
[1743123488053,0.38806953,2007.6,2007.3,4.98176]
[1743123488281,12.66182,2007.7,2007.3,4.98176]
[1743123488492,0.38806953,2007.6,2007.3,4.98176]
[1743123488658,12.66182,2007.7,2007.3,4.98176]
[1743123488858,0.38806953,2007.6,2007.3,4.98176]
[1743123489180,3.8144,2007.5,2007.2,4.98196]
[1743123489504,9.18378953,2007.5,2007.1,4.98212]
[1743123489856,12.63927924,2007.5,2006.8,0.7776]
[1743123490058,4.98184,2007.3,2006.9,4.9827]
[1743123490394,0.38528294,2007.2,2006.9,4.9827]
[1743123490604,1.15578294,2007.2,2006.9,9.9654]
[1743123490767,1.15578294,2007.2,2006.9,4.9827]
[1743123491110,1.15578294,2007.2,2006.9,9.9654]
[1743123491398,1.15578294,2007.2,2006.9,4.9827]
[1743123491569,4.15578294,2007.2,2006.5,0.8187]
[1743123491895,3.0,2007.0,2006.7,4.98328]
[1743123492203,0.38410914,2006.9,2006.7,4.98319]
[1743123492563,0.38410914,2006.9,2006.8,4.98305]
[1743123493299,0.38410914,2006.9,2006.7,4.98319]
[1743123493503,7.98233,2007.1,2006.7,4.98319]
[1743123493809,0.38410914,2007.0,2006.7,9.96639]
[1743123493990,0.38410914,2007.0,2006.7,9.9663]
[1743123494193,0.38410914,2007.0,2006.7,4.98315]
[1743123495307,0.38410914,2007.0,2006.8,4.98305]
[1743123497268,0.38410914,2007.0,2006.7,4.98326]
[1743123497711,0.38410914,2007.0,2006.8,4.98305]
[1743123498013,0.38410914,2007.0,2006.7,4.98326]
[1743123498214,0.38410914,2007.0,2006.7,4.98315]
[1743123502512,0.38410914,2007.0,2006.8,4.98304]
[1743123503575,0.38410914,2007.0,2006.7,4.98326]
[1743123503819,0.38410914,2007.0,2006.9,4.9828]
[1743123504205,5.501,2007.6,2007.3,4.9817]
[1743123504578,0.35010836,2007.5,2007.3,4.9817]
[1743123504780,3.35010836,2007.5,2007.3,4.9817]
[1743123506716,3.35010836,2007.5,2007.3,4.98167]
[1743123508913,8.33148836,2007.5,2007.1,5.81078]
[1743123509115,8.33148836,2007.5,2007.1,10.79297]
[1743123509484,3.35010836,2007.5,2007.1,10.79297]
[1743123509817,3.35010836,2007.5,2007.1,9.96427]
[1743123510513,3.35010836,2007.5,2007.2,4.98182]
[1743123510719,3.35010836,2007.5,2007.3,4.9817]
[1743123510915,3.35010836,2007.5,2007.2,4.982]
[1743123512229,3.35010836,2007.5,2007.0,4.98242]
[1743123512230,8.33157836,2007.5,2007.0,4.98242]
[1743123512388,5.79876,2007.4,2007.0,4.98242]
[1743123512720,0.35176661,2007.3,2007.0,4.98235]
[1743123512898,0.35176661,2007.3,2007.1,4.98221]
[1743123513784,0.35176661,2007.3,2007.0,4.98249]
[1743123514209,0.35176661,2007.3,2007.1,4.98229]
[1743123514723,0.35176661,2007.3,2007.0,4.98249]
[1743123516098,0.35176661,2007.3,2007.1,4.98231]
[1743123518030,0.90176661,2007.3,2006.9,4.98279]
[1743123518235,3.7775,2007.2,2006.9,4.98278]
[1743123518734,0.35220875,2007.1,2006.9,4.98278]
[1743123519126,0.35220875,2007.1,2006.9,9.96539]
[1743123519326,0.35220875,2007.1,2006.9,4.98261]
[1743123522541,0.35220875,2007.1,2007.0,4.98256]
[1743123522911,3.7663,2007.3,2007.0,4.98256]
[1743123523111,0.35220875,2007.2,2007.0,4.98256]
[1743123523939,0.35220875,2007.2,2007.0,5.73736]
[1743123524142,0.35220875,2007.2,2007.1,4.98231]
[1743123524312,3.7663,2007.5,2007.2,4.98206]
[1743123524512,0.34205245,2007.4,2007.2,4.98206]
[1743123525246,0.34205245,2007.4,2007.1,4.98231]
[1743123526755,0.7962,2007.2,2006.8,5.76566]
[1743123527049,0.3422738,2007.1,2006.8,5.76554]
[1743123527550,0.3422738,2007.1,2006.9,4.98278]
[1743123530841,0.3422738,2007.1,2006.8,4.98284]
[1743123531262,0.3422738,2007.1,2006.9,4.9828]
[1743123534466,0.3422738,2007.1,2006.9,19.4828]
[1743123534644,0.3422738,2007.1,2006.9,14.5]
[1743123535033,0.3422738,2007.1,2006.9,19.48277]
[1743123537671,0.3422738,2007.1,2006.9,20.29587]
[1743123537967,0.8303,2007.4,2006.9,20.29587]
[1743123538172,0.34175727,2007.0,2006.9,20.29587]
[1743123538479,3.0,2007.2,2006.9,20.29587]
[1743123538686,0.34175727,2007.0,2006.9,20.29587]
[1743123538885,3.0,2007.2,2006.9,20.29587]
[1743123539488,0.34175727,2007.1,2006.9,25.27852]
[1743123539693,0.34175727,2007.1,2006.9,10.77852]
[1743123540065,0.34175727,2007.1,2007.0,4.98256]
[1743123540465,3.0,2007.3,2007.0,4.98256]
[1743123540965,0.34175727,2007.2,2007.0,4.98256]
[1743123542001,0.34175727,2007.2,2006.9,5.79575]
[1743123542298,0.34175727,2007.2,2006.9,4.98265]
[1743123543991,0.34175727,2007.2,2007.0,4.98251]
[1743123546305,0.34175727,2007.2,2007.0,9.96493]
[1743123546472,0.34175727,2007.2,2007.1,4.98231]
[1743123547998,3.0,2007.5,2007.1,9.96442]
[1743123548318,0.34153591,2007.2,2007.1,4.98211]
[1743123548911,3.0,2007.5,2007.1,9.9642]
[1743123549093,0.34153591,2007.2,2007.1,9.9642]
[1743123549273,3.0,2007.5,2007.2,4.98204]
[1743123549469,3.0,2007.5,2007.3,4.9816]
[1743123549674,0.7917,2007.6,2007.3,4.9816]
[1743123550409,3.7917,2007.6,2007.3,4.98178]
[1743123551273,8.77279,2007.6,2007.2,4.98205]
[1743123551599,8.77279,2007.6,2007.2,9.96391]
[1743123551805,8.77279,2007.6,2007.2,4.98195]
[1743123552314,8.77279,2007.6,2007.2,9.96386]
[1743123553412,8.77279,2007.6,2007.2,4.98191]
[1743123553911,3.7917,2007.6,2007.3,4.9818]
[1743123554302,3.7917,2007.6,2007.3,4.98165]
[1743123556517,0.34260583,2007.5,2007.3,4.98165]
[1743123557119,0.34260583,2007.5,2007.2,4.98205]
[1743123557320,0.34260583,2007.5,2007.2,13.07956649]
[1743123557617,0.34260583,2007.5,2007.2,13.07945649]
[1743123558115,0.34260583,2007.5,2007.3,4.98176]
[1743123559183,0.34260583,2007.5,2007.1,19.48229]
[1743123559410,8.32402583,2007.5,2007.1,4.98229]
[1743123559733,8.32402583,2007.5,2007.1,9.96449]
[1743123560221,4.98215,2007.2,2006.8,9.96582]
[1743123560530,4.98215,2007.2,2006.8,21.163902]
[1743123560821,0.34260583,2007.1,2006.8,6.663902]
[1743123561023,5.5128,2007.3,2007.0,4.98244]
[1743123561424,12.63366952,2007.3,2006.9,4.98274]
[1743123562112,12.63366952,2007.3,2006.9,19.48274]
[1743123562928,10.49475,2007.3,2006.9,19.48274]
[1743123564439,5.5128,2007.3,2007.0,4.98244]
[1743123564616,5.5128,2007.3,2007.1,4.98227]
[1743123565605,5.5128,2007.3,2007.0,4.98244]
[1743123567439,4.681,2007.3,2007.0,5.75054]
[1743123567844,4.681,2007.3,2007.0,5.75052]
[1743123569042,4.681,2007.3,2007.1,4.98219]
[1743123569535,4.681,2007.3,2007.0,4.98242]
[1743123571514,0.34175727,2007.2,2007.0,4.98242]
[1743123580765,0.34175727,2007.2,2007.0,19.48242]
[1743123581059,0.34175727,2007.2,2007.0,24.46487]
[1743123581754,3.34175727,2007.2,2007.0,19.48242]
[1743123582131,3.34175727,2007.2,2007.0,24.46481]
[1743123582631,3.34175727,2007.2,2007.0,9.96481]
[1743123583034,3.34175727,2007.2,2007.0,4.98239]
[1743123584175,3.34175727,2007.2,2007.1,4.98231]
[1743123585672,3.34175727,2007.2,2007.0,9.96483]
[1743123585875,3.34175727,2007.2,2007.1,4.98231]